bitfinex/quotes_SOLUSD_20260124
["timestamp","ask_amount","ask_price","bid_price","bid_amount"]
[1769235738940,0.75794341,127.66,127.63,2.86777914]
[1769235739155,5.78798072,127.65,127.63,2.86777914]
[1769235739348,0.75794341,127.66,127.63,2.86777914]
[1769235739540,5.78757901,127.65,127.63,2.86777914]
[1769235739751,0.75794341,127.66,127.63,2.86777914]
[1769235740052,5.78757901,127.65,127.63,2.86777914]
[1769235740245,0.75794341,127.66,127.63,2.86777914]
[1769235740545,5.78723218,127.65,127.63,2.86777914]
[1769235740747,0.75794341,127.66,127.63,2.86777914]
[1769235740946,5.78723218,127.65,127.63,2.86777914]
[1769235741146,0.75794341,127.66,127.63,2.86777914]
[1769235741347,5.78724419,127.65,127.63,2.86777914]
[1769235741668,0.75794341,127.66,127.63,2.86777914]
[1769235741861,5.78693914,127.65,127.63,2.86777914]
[1769235742061,0.75794341,127.66,127.63,2.86777914]
[1769235742260,5.78693778,127.65,127.63,2.86777914]
[1769235742460,0.75794341,127.66,127.63,2.86777914]
[1769235742661,5.78667489,127.65,127.63,2.86777914]
[1769235742861,0.75794341,127.66,127.63,2.86777914]
[1769235743063,5.78667626,127.65,127.63,2.86777914]
[1769235743371,0.75794341,127.66,127.63,2.86777914]
[1769235743557,5.78645377,127.65,127.63,2.86777914]
[1769235743746,0.75794341,127.66,127.63,2.86777914]
[1769235747669,0.75794341,127.66,127.64,2.86777914]
[1769235750173,0.75794341,127.66,127.65,2.1040214]
[1769235752451,0.75794341,127.66,127.64,2.86777914]
[1769235754274,9.93496897,127.7,127.65,2.1040214]
[1769235754580,5.78143479,127.69,127.65,2.1040214]
[1769235754877,5.78143479,127.68,127.64,2.86777914]
[1769235755057,5.78143479,127.67,127.64,2.86777914]
[1769235755257,9.93496897,127.7,127.64,2.86777914]
[1769235755464,5.78110989,127.69,127.64,2.86777914]
[1769235755663,5.78110989,127.68,127.64,2.86777914]
[1769235755864,5.78110989,127.67,127.64,2.86777914]
[1769235756176,2.1040214,127.69,127.64,2.86777914]
[1769235756378,0.79747113,127.67,127.64,0.76375774]
[1769235757181,5.78014175,127.66,127.64,0.76375774]
[1769235757356,0.79747113,127.67,127.64,0.76375774]
[1769235757657,5.7809071,127.66,127.64,0.76375774]
[1769235757976,0.79747113,127.67,127.64,0.76375774]
[1769235758151,5.78088584,127.66,127.64,0.76375774]
[1769235758356,0.79747113,127.67,127.64,0.76375774]
[1769235758651,5.78088223,127.66,127.64,0.76375774]
[1769235758854,0.79747113,127.67,127.64,0.76375774]
[1769235759053,5.78088359,127.66,127.64,0.76375774]
[1769235759357,0.79747113,127.67,127.64,0.76375774]
[1769235759564,5.78090989,127.66,127.64,0.76375774]
[1769235759766,0.79747113,127.67,127.64,0.76375774]
[1769235759977,5.78090852,127.66,127.64,0.76375774]
[1769235760176,0.79747113,127.67,127.64,0.76375774]
[1769235760377,5.78096695,127.66,127.64,0.76375774]
[1769235760579,0.79747113,127.67,127.64,0.76375774]
[1769235760767,5.78097549,127.66,127.64,0.76375774]
[1769235760965,0.79747113,127.67,127.64,0.76375774]
[1769235761165,5.78097549,127.66,127.64,0.76375774]
[1769235761368,0.79747113,127.67,127.64,0.76375774]
[1769235761559,5.78105875,127.66,127.64,0.76375774]
[1769235761760,0.79747113,127.67,127.64,0.76375774]
[1769235761985,5.78105875,127.66,127.64,0.76375774]
[1769235762157,0.79747113,127.67,127.64,0.76375774]
[1769235762363,5.78112638,127.66,127.64,0.76375774]
[1769235762580,0.79747113,127.67,127.64,0.76375774]
[1769235762787,5.78117195,127.66,127.64,0.76375774]
[1769235762981,0.79747113,127.67,127.64,0.76375774]
[1769235763174,5.78117195,127.66,127.64,0.76375774]
[1769235763487,0.79747113,127.67,127.64,0.76375774]
[1769235763684,6.57867688,127.66,127.63,2.86133904]
[1769235763985,0.79747113,127.66,127.63,2.86133904]
[1769235765473,5.7814807,127.65,127.62,2.86133904]
[1769235765670,0.79747113,127.65,127.63,0.75731764]
[1769235767687,0.79747113,127.65,127.62,2.86133904]
[1769235768793,0.79747113,127.65,127.62,0.75731764]
[1769235772772,0.79747113,127.65,127.62,2.86133904]
[1769235778899,0.79747113,127.65,127.62,2.86086794]
[1769235799211,0.79747113,127.65,127.63,0.78005364]
[1769235799414,0.77959493,127.67,127.64,0.78005364]
[1769235799591,5.78914272,127.66,127.64,2.88360394]
[1769235799790,5.78914272,127.65,127.64,2.88360394]
[1769235800285,5.78914272,127.66,127.64,2.88360394]
[1769235800502,5.78914272,127.65,127.64,2.88360394]
[1769235800910,5.78914272,127.66,127.64,2.88360394]
[1769235801117,5.78914272,127.65,127.62,0.78005364]
[1769235801298,0.77959493,127.64,127.62,2.88360394]
[1769235801495,0.77959493,127.64,127.62,0.78005364]
[1769235802117,2.1035503,127.66,127.62,0.78005364]
[1769235802318,6.56977095,127.65,127.62,0.78005364]
[1769235802614,5.79027095,127.64,127.62,0.78005364]
[1769235802828,0.77959493,127.65,127.62,0.78005364]
[1769235803008,5.79027095,127.64,127.62,0.78005364]
[1769235803208,0.77959493,127.65,127.62,0.78005364]
[1769235803415,5.79037444,127.64,127.62,0.78005364]
[1769235803618,0.77959493,127.65,127.62,0.78005364]
[1769235803820,5.79037444,127.64,127.62,0.78005364]
[1769235804120,0.77959493,127.65,127.62,0.78005364]
[1769235804298,5.79026212,127.64,127.62,0.78005364]
[1769235804596,0.77959493,127.65,127.62,0.78005364]
[1769235804797,5.79074533,127.64,127.62,0.78005364]
[1769235805018,0.77959493,127.65,127.62,0.78005364]
[1769235805219,5.79074533,127.64,127.62,0.78005364]
[1769235805404,0.77959493,127.65,127.62,0.78005364]
[1769235805703,5.79041632,127.64,127.62,0.78005364]
[1769235805903,0.77959493,127.65,127.62,0.78005364]
[1769235806111,5.79030822,127.64,127.62,0.78005364]
[1769235806316,0.77959493,127.65,127.62,0.78005364]
[1769235806519,5.79040326,127.64,127.62,0.78005364]
[1769235806702,0.77959493,127.65,127.62,0.78005364]
[1769235806903,5.79040326,127.64,127.62,0.78005364]
[1769235807101,0.77959493,127.65,127.62,0.78005364]
[1769235807303,5.78979458,127.64,127.62,0.78005364]
[1769235807519,0.77959493,127.65,127.62,0.78005364]
[1769235807717,5.79017459,127.64,127.62,0.78005364]
[1769235808017,0.77959493,127.65,127.62,0.78005364]
[1769235808203,5.79017322,127.64,127.62,0.78005364]
[1769235808404,0.77959493,127.65,127.62,0.78005364]
[1769235808605,5.79018396,127.64,127.62,0.78005364]
[1769235808805,0.77959493,127.65,127.62,0.78005364]
[1769235809105,5.79018396,127.64,127.62,0.78005364]
[1769235809306,0.77959493,127.65,127.62,0.78005364]
[1769235809510,5.79024808,127.64,127.62,0.78005364]
[1769235809708,0.77959493,127.65,127.62,0.78005364]
[1769235809911,5.79024808,127.64,127.62,0.78005364]
[1769235810098,0.77959493,127.65,127.62,0.78005364]
[1769235810298,5.79036552,127.64,127.62,0.78005364]
[1769235810513,0.77959493,127.65,127.62,0.78005364]
[1769235810719,5.79036689,127.64,127.62,0.78005364]
[1769235811017,0.77959493,127.65,127.62,0.78005364]
[1769235811317,5.79036552,127.64,127.62,0.78005364]
[1769235811515,0.77959493,127.65,127.62,0.78005364]
[1769235811725,5.79016383,127.64,127.62,0.78005364]
[1769235811912,0.77959493,127.65,127.62,0.78005364]
[1769235812114,5.79016247,127.64,127.62,0.78005364]
[1769235812319,0.77959493,127.65,127.62,0.78005364]
[1769235812528,5.78998109,127.64,127.62,0.78005364]
[1769235812704,0.77959493,127.65,127.62,0.78005364]
[1769235813004,5.78998109,127.64,127.62,0.78005364]
[1769235813200,0.77959493,127.65,127.62,0.78005364]
[1769235813500,5.78981405,127.64,127.62,0.78005364]
[1769235813699,0.77959493,127.65,127.62,0.78005364]
[1769235813907,5.78981268,127.64,127.62,0.78005364]
[1769235814122,0.77959493,127.65,127.62,0.78005364]
[1769235814322,5.78971179,127.64,127.62,0.78005364]
[1769235814523,0.77959493,127.65,127.62,0.78005364]
[1769235814715,5.78966192,127.64,127.62,0.78005364]
[1769235815021,0.77959493,127.65,127.62,0.78005364]
[1769235815216,5.78966055,127.64,127.62,0.78005364]
[1769235815416,0.77959493,127.65,127.62,0.78005364]
[1769235815614,5.73109542,127.64,127.62,0.78005364]
[1769235815804,0.77959493,127.65,127.62,0.78005364]
[1769235816004,5.73109678,127.64,127.62,0.78005364]
[1769235816204,0.77959493,127.65,127.62,0.78005364]
[1769235816422,5.73097429,127.64,127.62,0.78005364]
[1769235816626,0.77959493,127.65,127.62,0.78005364]
[1769235816922,5.73097429,127.64,127.62,0.78005364]
[1769235817122,0.77959493,127.65,127.62,0.78005364]
[1769235817323,5.73091332,127.64,127.62,0.78005364]
[1769235817516,0.77959493,127.65,127.62,0.78005364]
[1769235817718,5.7308663,127.64,127.62,0.78005364]
[1769235817919,0.77959493,127.65,127.62,0.78005364]
[1769235818121,5.73086494,127.64,127.62,0.78005364]
[1769235818306,0.77959493,127.65,127.62,0.78005364]
[1769235818507,5.7307716,127.64,127.62,0.78005364]
[1769235818700,0.77959493,127.65,127.62,0.78005364]
[1769235818902,5.7307716,127.64,127.62,0.78005364]
[1769235819202,0.77959493,127.65,127.62,0.78005364]
[1769235819404,5.73068726,127.64,127.62,0.78005364]
[1769235819604,0.77959493,127.65,127.62,0.78005364]
[1769235819805,5.73068591,127.64,127.62,0.78005364]
[1769235820029,0.77959493,127.65,127.62,0.78005364]
[1769235820335,5.73068591,127.64,127.62,0.78005364]
[1769235820507,0.77959493,127.65,127.62,0.78005364]
[1769235820707,5.73038942,127.64,127.62,0.78005364]
[1769235821021,0.77959493,127.65,127.62,0.78005364]
[1769235821220,5.73038806,127.64,127.62,0.78005364]
[1769235821421,0.77959493,127.65,127.62,0.78005364]
[1769235821612,5.73032635,127.64,127.62,0.78005364]
[1769235821813,0.77959493,127.65,127.62,0.78005364]
[1769235822020,5.73032635,127.64,127.62,0.78005364]
[1769235822332,0.77959493,127.65,127.62,0.78005364]
[1769235822525,5.73004834,127.64,127.62,0.78005364]
[1769235822827,0.77959493,127.65,127.62,0.78005364]
[1769235823028,5.73049998,127.64,127.62,0.78005364]
[1769235823327,0.77959493,127.65,127.62,0.78005364]
[1769235823519,5.73045893,127.64,127.62,0.78005364]
[1769235823722,0.77959493,127.65,127.62,0.78005364]
[1769235823921,5.73045981,127.64,127.62,0.78005364]
[1769235824223,0.77959493,127.65,127.62,0.78005364]
[1769235824423,5.73020164,127.64,127.62,0.78005364]
[1769235824741,0.77959493,127.65,127.62,0.78005364]
[1769235825035,5.73020029,127.64,127.62,0.78005364]
[1769235825356,0.77959493,127.65,127.62,0.78005364]
[1769235825537,5.73020656,127.64,127.62,0.78005364]
[1769235825737,0.77959493,127.65,127.62,0.78005364]
[1769235825929,5.73020656,127.64,127.62,0.78005364]
[1769235826228,0.77959493,127.65,127.62,0.78005364]
[1769235826539,5.73018939,127.64,127.62,0.78005364]
[1769235826835,0.77959493,127.65,127.62,0.78005364]
[1769235827034,5.73019363,127.64,127.62,0.78005364]
[1769235827235,0.77959493,127.65,127.62,0.78005364]
[1769235827438,5.73018692,127.64,127.62,0.78005364]
[1769235827736,0.77959493,127.65,127.62,0.78005364]
[1769235827939,5.73018692,127.64,127.62,0.78005364]
[1769235828235,0.77959493,127.65,127.62,0.78005364]
[1769235828428,5.72983286,127.64,127.62,0.78005364]
[1769235828729,0.77959493,127.65,127.62,0.78005364]
[1769235828929,5.72941458,127.64,127.62,0.78005364]
[1769235829129,0.77959493,127.65,127.62,0.78005364]
[1769235829431,5.72943828,127.64,127.62,0.78005364]
[1769235829623,0.77959493,127.65,127.62,0.78005364]
[1769235829823,5.72942752,127.64,127.62,0.78005364]
[1769235830025,0.77959493,127.65,127.62,2.88360394]
[1769235830226,0.77176449,127.66,127.63,2.9255685]
[1769235830422,5.72928727,127.65,127.63,2.9255685]
[1769235830632,0.77176449,127.66,127.63,2.9255685]
[1769235830833,5.7288199,127.65,127.63,2.9255685]
[1769235831034,0.77176449,127.66,127.63,2.9255685]
[1769235831220,5.72882126,127.65,127.63,2.9255685]
[1769235831413,0.77176449,127.66,127.63,2.9255685]
[1769235831632,5.72881341,127.65,127.63,2.9255685]
[1769235831934,0.77176449,127.66,127.63,2.9255685]
[1769235832135,5.72881205,127.65,127.63,2.9255685]
[1769235832319,0.77176449,127.66,127.63,2.9255685]
[1769235832521,5.72879035,127.65,127.63,2.9255685]
[1769235832720,0.77176449,127.66,127.63,2.9255685]
[1769235833019,5.72879035,127.65,127.63,2.9255685]
[1769235833216,0.77176449,127.66,127.63,2.9255685]
[1769235833415,5.72878109,127.65,127.63,2.9255685]
[1769235833615,0.77176449,127.66,127.63,2.9255685]
[1769235833829,5.72878109,127.65,127.63,2.9255685]
[1769235834152,15.76862257,127.69,127.61,0.9220182]
[1769235834153,6.39077141,127.64,127.61,0.9220182]
[1769235834318,0.66250854,127.64,127.61,0.9220182]
[1769235834523,5.7276479,127.63,127.61,0.9220182]
[1769235834818,0.66250854,127.64,127.61,0.9220182]
[1769235835020,5.7286189,127.63,127.61,0.9220182]
[1769235835337,0.66250854,127.64,127.61,0.9220182]
[1769235835531,5.74051614,127.63,127.61,0.9220182]
[1769235835735,0.66250854,127.64,127.61,0.9220182]
[1769235835917,5.74049734,127.63,127.61,0.9220182]
[1769235836115,0.66250854,127.64,127.61,0.9220182]
[1769235836335,5.74045684,127.63,127.61,0.9220182]
[1769235836637,0.66250854,127.64,127.61,0.9220182]
[1769235836839,5.74046741,127.63,127.61,0.9220182]
[1769235837143,0.66250854,127.64,127.61,0.9220182]
[1769235837441,5.7406579,127.63,127.61,0.9220182]
[1769235837633,0.66250854,127.64,127.61,0.9220182]
[1769235837933,5.74065654,127.63,127.61,0.9220182]
[1769235838238,0.66250854,127.64,127.61,0.9220182]
[1769235838440,5.74042353,127.63,127.61,0.9220182]
[1769235838626,0.66250854,127.64,127.61,0.9220182]
[1769235838940,5.74043646,127.63,127.61,0.9220182]
[1769235839115,0.66250854,127.64,127.61,0.9220182]
[1769235839315,5.74044473,127.63,127.61,0.9220182]
[1769235839516,0.66250854,127.64,127.61,0.9220182]
[1769235839714,5.74044337,127.63,127.61,0.9220182]
[1769235839917,0.66250854,127.64,127.61,0.9220182]
[1769235840138,5.74044473,127.63,127.61,0.9220182]
[1769235840320,0.66250854,127.64,127.61,0.9220182]
[1769235840521,5.74048041,127.63,127.61,0.9220182]
[1769235840722,0.66250854,127.64,127.61,0.9220182]
[1769235840924,5.74048041,127.63,127.61,0.9220182]
[1769235841222,0.66250854,127.64,127.61,0.9220182]
[1769235841423,5.74074787,127.63,127.61,0.9220182]
[1769235841622,0.66250854,127.64,127.61,0.9220182]
[1769235841831,5.7405154,127.63,127.61,0.9220182]
[1769235842032,0.66250854,127.64,127.61,0.9220182]
[1769235842332,5.74073909,127.63,127.61,0.9220182]
[1769235842630,0.66250854,127.64,127.61,0.9220182]
[1769235843039,5.74055669,127.63,127.61,0.9220182]
[1769235843447,0.66250854,127.64,127.61,0.9220182]
[1769235843927,5.74062661,127.63,127.61,0.9220182]
[1769235844123,0.66250854,127.64,127.61,0.9220182]
[1769235844322,5.7407079,127.63,127.61,0.9220182]
[1769235844523,0.66250854,127.64,127.61,0.9220182]
[1769235844725,5.74071683,127.63,127.61,0.9220182]
[1769235845024,0.66250854,127.64,127.61,0.9220182]
[1769235845223,5.74071683,127.63,127.61,0.9220182]
[1769235845444,0.66250854,127.64,127.61,0.9220182]
[1769235845647,5.74112736,127.63,127.61,0.9220182]
[1769235845939,0.66250854,127.64,127.61,0.9220182]
[1769235846143,5.74048987,127.63,127.61,0.9220182]
[1769235846319,0.66250854,127.64,127.61,0.9220182]
[1769235846518,5.74126891,127.63,127.61,0.9220182]
[1769235846746,0.66250854,127.64,127.61,0.9220182]
[1769235846948,5.74128185,127.63,127.61,0.9220182]
[1769235847125,0.66250854,127.64,127.61,0.9220182]
[1769235847425,5.74154298,127.63,127.61,0.9220182]
[1769235847622,0.66250854,127.64,127.61,0.9220182]
[1769235847820,5.74126472,127.63,127.61,0.9220182]
[1769235848046,0.66250854,127.64,127.61,0.9220182]
[1769235848255,5.74126472,127.63,127.61,0.9220182]
[1769235848454,0.66250854,127.64,127.61,0.9220182]
[1769235848752,5.74101983,127.63,127.61,0.9220182]
[1769235848937,0.66250854,127.64,127.61,0.9220182]
[1769235849136,5.74101847,127.63,127.61,0.9220182]
[1769235849342,0.66250854,127.64,127.61,0.9220182]
[1769235849543,5.74081154,127.63,127.61,0.9220182]
[1769235849739,0.66250854,127.64,127.61,0.9220182]
[1769235849938,5.74081154,127.63,127.61,0.9220182]
[1769235850137,0.66250854,127.64,127.61,0.9220182]
[1769235850346,5.7408034,127.63,127.61,0.9220182]
[1769235850553,0.66250854,127.64,127.61,0.9220182]
[1769235850753,5.74073166,127.63,127.61,0.9220182]
[1769235850955,0.66250854,127.64,127.61,0.9220182]
[1769235851156,5.74063643,127.63,127.61,0.9220182]
[1769235851452,0.66250854,127.64,127.61,0.9220182]
[1769235851630,5.74043087,127.63,127.61,0.9220182]
[1769235851956,0.66250854,127.64,127.61,0.9220182]
[1769235852141,5.74043087,127.63,127.61,0.9220182]
[1769235852342,0.66250854,127.64,127.61,0.9220182]
[1769235852544,5.74024383,127.63,127.61,0.9220182]
[1769235852743,0.66250854,127.64,127.61,0.9220182]
[1769235853042,5.7402457,127.63,127.61,0.9220182]
[1769235853342,0.66250854,127.64,127.61,0.9220182]
[1769235853541,5.74007909,127.63,127.61,0.9220182]
[1769235853842,0.66250854,127.64,127.61,0.9220182]
[1769235854043,5.74017831,127.63,127.61,0.9220182]
[1769235854256,0.66250854,127.64,127.61,0.9220182]
[1769235854456,5.74012094,127.63,127.61,0.9220182]
[1769235854650,0.66250854,127.64,127.61,0.9220182]
[1769235854850,5.74002926,127.63,127.61,0.9220182]
[1769235855151,0.66250854,127.64,127.61,0.9220182]
[1769235855453,5.74052027,127.63,127.61,0.9220182]
[1769235855640,0.66250854,127.64,127.61,0.9220182]
[1769235855839,5.74044505,127.63,127.61,0.9220182]
[1769235856041,0.66250854,127.64,127.61,0.9220182]
[1769235856240,5.74044369,127.63,127.61,0.9220182]
[1769235856441,0.66250854,127.64,127.61,0.9220182]
[1769235856642,5.74022724,127.63,127.61,0.9220182]
[1769235856940,0.66250854,127.64,127.61,0.9220182]
[1769235857239,5.74023736,127.63,127.61,0.9220182]
[1769235857440,0.66250854,127.64,127.61,0.9220182]
[1769235857739,5.7398973,127.63,127.61,0.9220182]
[1769235857939,0.66250854,127.64,127.61,0.9220182]
[1769235858152,5.73974582,127.63,127.61,0.9220182]
[1769235858352,0.66250854,127.64,127.61,0.9220182]
[1769235858553,5.73965129,127.63,127.61,0.9220182]
[1769235858746,0.66250854,127.64,127.61,0.9220182]
[1769235858950,5.73965265,127.63,127.61,0.9220182]
[1769235859137,0.66250854,127.64,127.61,0.9220182]
[1769235859339,5.73969607,127.63,127.61,0.9220182]
[1769235859538,0.66250854,127.64,127.61,0.9220182]
[1769235859837,5.73966709,127.63,127.61,0.9220182]
[1769235860037,0.66250854,127.64,127.61,0.9220182]
[1769235860234,5.73966845,127.63,127.61,0.9220182]
[1769235860453,0.66250854,127.64,127.61,0.9220182]
[1769235860658,5.73959805,127.63,127.61,0.9220182]
[1769235860851,0.66250854,127.64,127.61,0.9220182]
[1769235861053,5.74015498,127.63,127.61,0.9220182]
[1769235861244,0.66250854,127.64,127.61,0.9220182]
[1769235861446,5.74035803,127.63,127.61,0.9220182]
[1769235861662,0.66250854,127.64,127.61,0.9220182]
[1769235861867,5.74057257,127.63,127.61,0.9220182]
[1769235862067,0.66250854,127.64,127.61,0.9220182]
[1769235862364,5.74052497,127.63,127.61,0.9220182]
[1769235862564,0.66250854,127.64,127.61,0.9220182]
[1769235862772,5.74052198,127.63,127.61,0.9220182]
[1769235862962,0.66250854,127.64,127.61,0.9220182]
[1769235863155,5.74052334,127.63,127.61,0.9220182]
[1769235863353,0.66250854,127.64,127.61,0.9220182]
[1769235863653,5.74048379,127.63,127.61,0.9220182]
[1769235863968,0.66250854,127.64,127.61,0.9220182]
[1769235864160,5.74025637,127.63,127.61,0.9220182]
[1769235864351,0.66250854,127.64,127.61,0.9220182]
[1769235864548,5.74047148,127.63,127.61,0.9220182]
[1769235864757,0.66250854,127.64,127.61,0.9220182]
[1769235866371,5.73917853,127.63,127.61,0.9220182]
[1769235866676,0.66250854,127.64,127.61,0.9220182]
[1769235866864,5.73940452,127.63,127.61,0.9220182]
[1769235867066,0.66250854,127.64,127.61,0.9220182]
[1769235867265,5.73940748,127.63,127.61,0.9220182]
[1769235867471,0.66250854,127.64,127.61,0.9220182]
[1769235867664,5.73942341,127.63,127.61,0.9220182]
[1769235867864,0.66250854,127.64,127.61,0.9220182]
[1769235868052,5.73942341,127.63,127.61,0.9220182]
[1769235868252,0.66250854,127.64,127.61,0.9220182]
[1769235868445,5.73918916,127.63,127.61,0.9220182]
[1769235868648,0.66250854,127.64,127.61,0.9220182]
[1769235868848,5.73941654,127.63,127.61,0.9220182]
[1769235869072,0.66250854,127.64,127.61,0.9220182]
[1769235869265,5.73939365,127.63,127.61,0.9220182]
[1769235869466,0.66250854,127.64,127.61,0.9220182]
[1769235869668,5.73941862,127.63,127.61,0.9220182]
[1769235869859,0.66250854,127.64,127.61,0.9220182]
[1769235870159,5.73941726,127.63,127.61,0.9220182]
[1769235870468,0.66250854,127.64,127.61,0.9220182]
[1769235870674,5.73920468,127.63,127.61,0.9220182]
[1769235870866,0.66250854,127.64,127.61,0.9220182]
[1769235871057,5.7389773,127.63,127.61,0.9220182]
[1769235871259,0.66250854,127.64,127.61,0.9220182]
[1769235871459,5.7394189,127.63,127.61,0.9220182]
[1769235871661,0.66250854,127.64,127.61,0.9220182]
[1769235871862,5.73922725,127.63,127.61,0.9220182]
[1769235872074,0.66250854,127.64,127.61,0.9220182]
[1769235872254,5.73934974,127.63,127.61,0.9220182]
[1769235872454,0.66250854,127.64,127.61,0.9220182]
[1769235872655,5.73925772,127.63,127.61,0.9220182]
[1769235872865,0.66250854,127.64,127.61,0.9220182]
[1769235873084,5.7394851,127.63,127.61,0.9220182]
[1769235873380,0.66250854,127.64,127.61,0.9220182]
[1769235873676,5.74007662,127.63,127.61,0.9220182]
[1769235873980,0.66250854,127.64,127.61,0.9220182]
[1769235874275,5.73998244,127.63,127.61,0.9220182]
[1769235874475,0.66250854,127.64,127.61,0.9220182]
[1769235874778,5.74003465,127.63,127.61,0.9220182]
[1769235874979,0.66250854,127.64,127.61,0.9220182]
[1769235875279,5.74004522,127.63,127.61,0.9220182]
[1769235875448,0.66250854,127.64,127.61,0.9220182]
[1769235875652,5.74011322,127.63,127.61,0.9220182]
[1769235875877,0.66250854,127.64,127.61,0.9220182]
[1769235876063,5.74011322,127.63,127.61,0.9220182]
[1769235876268,0.66250854,127.64,127.61,0.9220182]
[1769235876465,5.74086339,127.63,127.61,0.9220182]
[1769235876670,0.66250854,127.64,127.61,0.9220182]
[1769235876968,5.74086339,127.63,127.61,0.9220182]
[1769235877170,0.66250854,127.64,127.61,0.9220182]
[1769235877471,5.74162588,127.63,127.61,0.9220182]
[1769235877670,0.66250854,127.64,127.61,0.9220182]
[1769235877879,5.74164611,127.63,127.61,0.9220182]
[1769235878074,0.66250854,127.64,127.61,0.9220182]
[1769235878260,5.74267493,127.63,127.61,0.9220182]
[1769235878461,0.66250854,127.64,127.61,0.9220182]
[1769235878761,5.74408757,127.63,127.61,0.9220182]
[1769235878961,0.66250854,127.64,127.61,0.9220182]
[1769235879162,5.74488258,127.63,127.61,0.9220182]
[1769235879368,0.66250854,127.64,127.61,0.9220182]
[1769235879568,5.74542689,127.63,127.61,0.9220182]
[1769235879869,0.66250854,127.64,127.61,0.9220182]
[1769235880059,5.74542589,127.63,127.61,0.9220182]
[1769235880255,0.66250854,127.64,127.61,0.9220182]
[1769235880468,5.74558805,127.63,127.61,0.9220182]
[1769235880667,0.66250854,127.64,127.61,0.9220182]
[1769235880867,5.74561125,127.63,127.61,0.9220182]
[1769235881068,0.66250854,127.64,127.61,0.9220182]
[1769235881283,5.74561261,127.63,127.61,0.9220182]
[1769235881484,0.66250854,127.64,127.61,0.9220182]
[1769235881659,5.74571394,127.63,127.61,0.9220182]
[1769235881960,0.66250854,127.64,127.61,0.9220182]
[1769235882157,5.74571394,127.63,127.61,0.9220182]
[1769235882359,0.66250854,127.64,127.61,0.9220182]
[1769235882586,5.74582832,127.63,127.61,0.9220182]
[1769235882785,0.66250854,127.64,127.61,0.9220182]
[1769235882986,5.74582891,127.63,127.61,0.9220182]
[1769235883186,0.66250854,127.64,127.61,0.9220182]
[1769235883386,5.74593209,127.63,127.61,0.9220182]
[1769235883587,0.66250854,127.64,127.61,0.9220182]
[1769235883781,5.74605374,127.63,127.61,0.9220182]
[1769235883982,0.66250854,127.64,127.61,0.9220182]
[1769235884184,5.74605416,127.63,127.61,0.9220182]
[1769235884376,0.66250854,127.64,127.61,0.9220182]
[1769235884579,5.74620184,127.63,127.61,0.9220182]
[1769235884770,0.66250854,127.64,127.61,0.9220182]
[1769235884971,5.74620048,127.63,127.61,0.9220182]
[1769235885271,0.66250854,127.64,127.61,0.9220182]
[1769235885469,5.74622641,127.63,127.61,0.9220182]
[1769235885686,0.66250854,127.64,127.61,0.9220182]
[1769235885885,5.74622641,127.63,127.61,0.9220182]
[1769235886186,0.66250854,127.64,127.61,0.9220182]
[1769235886379,5.74622641,127.63,127.61,0.9220182]
[1769235886579,0.66250854,127.64,127.61,0.9220182]
[1769235886888,5.74639517,127.63,127.61,0.9220182]
[1769235887093,0.66250854,127.64,127.61,0.9220182]
[1769235887270,5.74640066,127.63,127.61,0.9220182]
[1769235887571,0.66250854,127.64,127.61,0.9220182]
[1769235887773,5.74659333,127.63,127.61,0.9220182]
[1769235887966,0.66250854,127.64,127.61,0.9220182]
[1769235888164,5.74644332,127.63,127.61,0.9220182]
[1769235888362,0.66250854,127.64,127.61,0.9220182]
[1769235888563,5.74846915,127.63,127.61,0.9220182]
[1769235888790,0.66250854,127.64,127.61,0.9220182]
[1769235888991,5.74937625,127.63,127.61,0.9220182]
[1769235889166,0.66250854,127.64,127.61,0.9220182]
[1769235889367,5.74955162,127.63,127.61,0.9220182]
[1769235889566,0.66250854,127.64,127.61,0.9220182]
[1769235889794,5.74957142,127.63,127.61,0.9220182]
[1769235890096,0.66250854,127.64,127.61,0.9220182]
[1769235890283,5.74957142,127.63,127.61,0.9220182]
[1769235890480,5.74957142,127.62,127.61,0.9220182]
[1769235890993,0.66250854,127.64,127.61,0.9220182]
[1769235891197,5.75025829,127.63,127.61,0.9220182]
[1769235891389,0.66250854,127.64,127.61,0.9220182]
[1769235891581,5.74996614,127.63,127.61,0.9220182]
[1769235891897,0.66250854,127.64,127.61,0.9220182]
[1769235892089,5.74996614,127.63,127.61,0.9220182]
[1769235892292,0.66250854,127.64,127.61,0.9220182]
[1769235892489,5.74973064,127.63,127.61,0.9220182]
[1769235892685,0.66250854,127.64,127.61,0.9220182]
[1769235892899,5.74973064,127.63,127.61,0.9220182]
[1769235893080,0.66250854,127.64,127.61,0.9220182]
[1769235893280,5.74972927,127.63,127.61,0.9220182]
[1769235893481,0.66250854,127.64,127.61,0.9220182]
[1769235893778,5.74952776,127.63,127.61,0.9220182]
[1769235893978,0.66250854,127.64,127.61,0.9220182]
[1769235894175,5.74952776,127.63,127.61,0.9220182]
[1769235894492,2.10395809,127.65,127.62,0.89305475]
[1769235894493,0.76680537,127.65,127.62,0.89305475]
[1769235894700,5.74923241,127.64,127.62,0.89305475]
[1769235894875,5.74923241,127.63,127.62,0.89305475]
[1769235896904,0.76680537,127.65,127.62,0.89305475]
[1769235901411,2.87060524,127.65,127.62,0.89305475]
[1769235908818,5.6006412,127.64,127.62,0.89305475]